[Event "*** Titled Tuesday Blitz"]
[Site "Chess.com"]
[Date "2021.04.20"]
[Round "3"]
[White "Agoking701"]
[Black "akanga001"]
[Result "1-0"]
[WhiteElo "2318"]
[BlackElo "2005"]
[TimeControl "180+1"]
[EndTime "10:27:51 PDT"]
[Termination "Agoking701 won by resignation"]

1. Nc3 {[%clk 0:03:00.9]} 1... f5 {[%clk 0:02:59]} 2. d4 {[%clk 0:02:50.8]} 2...
Nf6 {[%clk 0:02:58.8]} 3. Bg5 {[%clk 0:02:50.3]} 3... g6 {[%clk 0:02:57.6]} 4.
Bxf6 {[%clk 0:02:43.9]} 4... exf6 {[%clk 0:02:55]} 5. g3 {[%clk 0:02:44.8]} 5...
Bg7 {[%clk 0:02:53.7]} 6. Bg2 {[%clk 0:02:45.3]} 6... O-O {[%clk 0:02:53.6]} 7.
e3 {[%clk 0:02:44.3]} 7... d6 {[%clk 0:02:53.6]} 8. Nge2 {[%clk 0:02:44.8]} 8...
c6 {[%clk 0:02:53.9]} 9. O-O {[%clk 0:02:40.8]} 9... Na6 {[%clk 0:02:53]} 10.
Nf4 {[%clk 0:02:39.3]} 10... Qe8 {[%clk 0:02:50.9]} 11. Re1 {[%clk 0:02:36.8]}
11... Bd7 {[%clk 0:02:39.6]} 12. d5 {[%clk 0:02:32.2]} 12... Nc5 {[%clk
0:02:34.6]} 13. dxc6 {[%clk 0:02:15.3]} 13... Bxc6 {[%clk 0:02:33.3]} 14. Qxd6
{[%clk 0:02:10.1]} 14... Bxg2 {[%clk 0:02:31.6]} 15. Kxg2 {[%clk 0:01:55.8]}
15... Ne4 {[%clk 0:02:28.7]} 16. Qe6+ {[%clk 0:01:42.2]} 16... Qxe6 {[%clk
0:02:23.8]} 17. Nxe6 {[%clk 0:01:43.1]} 17... Rf7 {[%clk 0:02:21.2]} 18. Nxe4
{[%clk 0:01:31.6]} 18... fxe4 {[%clk 0:02:20.3]} 19. Red1 {[%clk 0:01:32.1]}
19... Re7 {[%clk 0:02:18]} 20. Nf4 {[%clk 0:01:31.3]} 20... Rc8 {[%clk
0:02:14.6]} 21. c3 {[%clk 0:01:30.4]} 21... f5 {[%clk 0:02:10.4]} 22. Rd5 {[%clk
0:01:29.6]} 22... Rc6 {[%clk 0:02:03]} 23. Rad1 {[%clk 0:01:29.5]} 23... Kf7
{[%clk 0:02:02.8]} 24. Rd7 {[%clk 0:01:23.1]} 24... Rc7 {[%clk 0:02:01.8]} 25.
Rxe7+ {[%clk 0:01:18.6]} 25... Rxe7 {[%clk 0:01:58.2]} 26. Rd8 {[%clk
0:01:18.8]} 26... a6 {[%clk 0:01:48.9]} 27. Nd5 {[%clk 0:01:17.1]} 27... Re8
{[%clk 0:01:22.3]} 28. Rd7+ {[%clk 0:01:08.5]} 28... Kg8 {[%clk 0:01:02.1]} 29.
Rxb7 {[%clk 0:00:59.5]} 29... Rd8 {[%clk 0:01:02.1]} 30. c4 {[%clk 0:00:56.4]}
30... Be5 {[%clk 0:00:55.8]} 31. b4 {[%clk 0:00:51.5]} 31... Rc8 {[%clk
0:00:55]} 32. c5 {[%clk 0:00:50.4]} 32... Rd8 {[%clk 0:00:49.2]} 33. Ne7+ {[%clk
0:00:47.2]} 33... Kf8 {[%clk 0:00:48.4]} 34. Nc6 {[%clk 0:00:47.5]} 34... Re8
{[%clk 0:00:45.9]} 35. Nxe5 {[%clk 0:00:43.6]} 35... Rxe5 {[%clk 0:00:45.9]} 36.
Rxh7 {[%clk 0:00:42.6]} 36... Rd5 {[%clk 0:00:44]} 37. Ra7 {[%clk 0:00:39]}
37... Rd2 {[%clk 0:00:38.8]} 38. Rxa6 {[%clk 0:00:38.3]} 38... g5 {[%clk
0:00:38.7]} 39. c6 {[%clk 0:00:36]} 39... Ke7 {[%clk 0:00:37.3]} 40. b5 {[%clk
0:00:34.4]} 40... Kd6 {[%clk 0:00:37.3]} 41. Ra7 {[%clk 0:00:31.2]} 41... Rb2
{[%clk 0:00:34.9]} 42. Rd7+ {[%clk 0:00:30.7]} 42... Ke6 {[%clk 0:00:33.1]} 43.
a4 {[%clk 0:00:29.3]} 43... Rb4 {[%clk 0:00:32.1]} 44. Rb7 {[%clk 0:00:28.8]}
44... Kd6 {[%clk 0:00:31.3]} 45. c7 {[%clk 0:00:28.6]} 45... Kd7 {[%clk
0:00:30.2]} 46. b6 {[%clk 0:00:28.8]} 46... Rxa4 {[%clk 0:00:27.2]} 47. Rb8
{[%clk 0:00:28.4]} 47... Rc4 {[%clk 0:00:27.2]} 48. Rd8+ {[%clk 0:00:27.8]}
48... Ke7 {[%clk 0:00:20.6]} 49. c8=Q {[%clk 0:00:25.6]} 1-0

[Event "*** Titled Tuesday Blitz"]
[Site "Chess.com"]
[Date "2021.04.20"]
[Round "3"]
[White "Jumbo"]
[Black "MeekMammoth2"]
[Result "1-0"]
[WhiteElo "2806"]
[BlackElo "2451"]
[TimeControl "180+1"]
[EndTime "10:27:52 PDT"]
[Termination "Jumbo won on time"]

1. e4 {[%clk 0:03:00.9]} 1... e5 {[%clk 0:02:57.8]} 2. Nf3 {[%clk 0:03:01.1]}
2... Nc6 {[%clk 0:02:58.4]} 3. Bb5 {[%clk 0:03:01.6]} 3... a6 {[%clk 0:02:58.5]}
4. Ba4 {[%clk 0:03:02.1]} 4... Nf6 {[%clk 0:02:58.4]} 5. O-O {[%clk 0:03:02.3]}
5... Be7 {[%clk 0:02:58.8]} 6. Re1 {[%clk 0:03:00.5]} 6... b5 {[%clk 0:02:59]}
7. Bb3 {[%clk 0:02:59.9]} 7... d6 {[%clk 0:02:59.5]} 8. c3 {[%clk 0:02:59]} 8...
O-O {[%clk 0:03:00]} 9. h3 {[%clk 0:02:58.3]} 9... Nb8 {[%clk 0:03:00]} 10. d4
{[%clk 0:02:57.9]} 10... Nbd7 {[%clk 0:03:00.6]} 11. Nbd2 {[%clk 0:02:57.2]}
11... Bb7 {[%clk 0:03:01]} 12. Bc2 {[%clk 0:02:57.7]} 12... Re8 {[%clk
0:03:01.3]} 13. Nf1 {[%clk 0:02:58.2]} 13... Bf8 {[%clk 0:03:01.8]} 14. Ng3
{[%clk 0:02:58.7]} 14... g6 {[%clk 0:03:02.3]} 15. a4 {[%clk 0:02:55.2]} 15...
Bg7 {[%clk 0:02:56]} 16. Bd3 {[%clk 0:02:51.7]} 16... c6 {[%clk 0:02:56.1]} 17.
b4 {[%clk 0:02:48.7]} 17... Qc7 {[%clk 0:02:51.3]} 18. Be3 {[%clk 0:02:48.3]}
18... d5 {[%clk 0:02:44]} 19. dxe5 {[%clk 0:02:20.7]} 19... Nxe4 {[%clk
0:02:42.4]} 20. Bxe4 {[%clk 0:02:11.1]} 20... dxe4 {[%clk 0:02:38.8]} 21. Nxe4
{[%clk 0:02:11.2]} 21... Nxe5 {[%clk 0:02:36.2]} 22. Bd4 {[%clk 0:01:50.3]}
22... Rad8 {[%clk 0:02:17.3]} 23. Nxe5 {[%clk 0:01:40.8]} 23... Bxe5 {[%clk
0:02:13.1]} 24. Qf3 {[%clk 0:01:16.1]} 24... f5 {[%clk 0:01:24.1]} 25. Nc5
{[%clk 0:00:51.8]} 25... Bxd4 {[%clk 0:01:04.3]} 26. cxd4 {[%clk 0:00:52.7]}
26... Bc8 {[%clk 0:01:01.4]} 27. a5 {[%clk 0:00:36.9]} 27... Qd6 {[%clk
0:00:55.1]} 28. h4 {[%clk 0:00:30]} 28... Kf7 {[%clk 0:00:37.8]} 29. Rxe8 {[%clk
0:00:19.7]} 29... Rxe8 {[%clk 0:00:37.1]} 30. Rd1 {[%clk 0:00:20.2]} 30... Rd8
{[%clk 0:00:26.1]} 31. Qe3 {[%clk 0:00:19.2]} 31... Qf6 {[%clk 0:00:19]} 32. Qf4
{[%clk 0:00:18.1]} 32... Re8 {[%clk 0:00:10.6]} 33. Qc7+ {[%clk 0:00:12.8]}
33... Kg8 {[%clk 0:00:10.7]} 34. Qf4 {[%clk 0:00:13.1]} 34... Kg7 {[%clk
0:00:10.1]} 35. f3 {[%clk 0:00:11.5]} 35... Re7 {[%clk 0:00:06.9]} 36. Kh2
{[%clk 0:00:10.8]} 36... Kf7 {[%clk 0:00:04]} 37. d5 {[%clk 0:00:11.1]} 37...
cxd5 {[%clk 0:00:03.9]} 38. Rxd5 {[%clk 0:00:12]} 38... Bb7 {[%clk 0:00:03.7]}
39. Rd6 {[%clk 0:00:11.6]} 39... Qc3 {[%clk 0:00:01.5]} 40. h5 {[%clk
0:00:09.3]} 1-0

[Event "*** Titled Tuesday Blitz"]
[Site "Chess.com"]
[Date "2021.04.20"]
[Round "3"]
[White "Abund"]
[Black "szachuspl"]
[Result "1-0"]
[WhiteElo "2737"]
[BlackElo "2552"]
[TimeControl "180+1"]
[EndTime "10:27:54 PDT"]
[Termination "Abund won by resignation"]

1. e4 {[%clk 0:03:00.9]} 1... c5 {[%clk 0:02:59]} 2. Nf3 {[%clk 0:03:01]} 2...
e6 {[%clk 0:02:58.8]} 3. g3 {[%clk 0:03:01.2]} 3... Nc6 {[%clk 0:02:56.6]} 4.
Bg2 {[%clk 0:03:01.6]} 4... Nf6 {[%clk 0:02:53.4]} 5. Qe2 {[%clk 0:03:00.1]}
5... e5 {[%clk 0:02:50.2]} 6. O-O {[%clk 0:02:59.9]} 6... Be7 {[%clk 0:02:49.5]}
7. c3 {[%clk 0:03:00.2]} 7... O-O {[%clk 0:02:49]} 8. Na3 {[%clk 0:03:00.4]}
8... Re8 {[%clk 0:02:47.7]} 9. d3 {[%clk 0:02:57.7]} 9... h6 {[%clk 0:02:46.8]}
10. Nc4 {[%clk 0:02:57.3]} 10... Bf8 {[%clk 0:02:45.2]} 11. Ne3 {[%clk
0:02:54.9]} 11... d6 {[%clk 0:02:40.9]} 12. Nh4 {[%clk 0:02:54.5]} 12... Nh7
{[%clk 0:02:40.3]} 13. Nd5 {[%clk 0:02:41.5]} 13... Be6 {[%clk 0:02:39.1]} 14.
Nf5 {[%clk 0:02:39.5]} 14... Bxd5 {[%clk 0:02:29.9]} 15. exd5 {[%clk 0:02:38.3]}
15... Ne7 {[%clk 0:02:30.2]} 16. Ne3 {[%clk 0:02:28.5]} 16... g6 {[%clk
0:02:27.4]} 17. a3 {[%clk 0:02:28]} 17... Bg7 {[%clk 0:02:27.3]} 18. b4 {[%clk
0:02:27.7]} 18... b6 {[%clk 0:02:26.7]} 19. bxc5 {[%clk 0:02:24.2]} 19... bxc5
{[%clk 0:02:24.8]} 20. Nc4 {[%clk 0:02:24.3]} 20... f5 {[%clk 0:02:22.9]} 21.
Bd2 {[%clk 0:02:23.8]} 21... Nf6 {[%clk 0:02:22]} 22. Rab1 {[%clk 0:02:01.4]}
22... Rb8 {[%clk 0:02:12.7]} 23. d4 {[%clk 0:01:43.5]} 23... cxd4 {[%clk
0:02:00.2]} 24. cxd4 {[%clk 0:01:43.2]} 24... e4 {[%clk 0:02:00.5]} 25. Bf4
{[%clk 0:01:32]} 25... Rxb1 {[%clk 0:01:57.1]} 26. Rxb1 {[%clk 0:01:31.2]} 26...
Nexd5 {[%clk 0:01:55.9]} 27. Bd2 {[%clk 0:01:06.7]} 27... g5 {[%clk 0:01:47]}
28. Rb7 {[%clk 0:01:02.1]} 28... f4 {[%clk 0:01:41.2]} 29. Ba5 {[%clk
0:00:57.3]} 29... Qa8 {[%clk 0:01:17.9]} 30. Nxd6 {[%clk 0:00:53.8]} 30... f3
{[%clk 0:01:09.9]} 31. Qb5 {[%clk 0:00:51.6]} 31... Rf8 {[%clk 0:00:53.1]} 32.
Bh3 {[%clk 0:00:46.1]} 32... g4 {[%clk 0:00:50.3]} 33. Bf1 {[%clk 0:00:46.1]}
33... e3 {[%clk 0:00:35.6]} 34. Bc4 {[%clk 0:00:40.7]} 34... e2 {[%clk
0:00:29.7]} 35. Bxd5+ {[%clk 0:00:40]} 35... Nxd5 {[%clk 0:00:27.5]} 36. Qxd5+
{[%clk 0:00:40.2]} 36... Kh8 {[%clk 0:00:25.1]} 37. Nf7+ {[%clk 0:00:25]} 37...
Kh7 {[%clk 0:00:16.2]} 38. Qe4+ {[%clk 0:00:22.8]} 38... Kg8 {[%clk 0:00:15.8]}
39. Nxh6+ {[%clk 0:00:21.7]} 39... Kh8 {[%clk 0:00:16.1]} 40. Qe7 {[%clk
0:00:16]} 40... Qxb7 {[%clk 0:00:14.6]} 41. Qxb7 {[%clk 0:00:14.8]} 41... Bxh6
{[%clk 0:00:15.3]} 42. h3 {[%clk 0:00:12.7]} 42... Re8 {[%clk 0:00:14.3]} 43.
Be1 {[%clk 0:00:10.2]} 43... gxh3 {[%clk 0:00:14.8]} 44. Qxf3 {[%clk 0:00:09.8]}
44... Bg7 {[%clk 0:00:14.6]} 45. Qh5+ {[%clk 0:00:09.5]} 1-0

[Event "*** Titled Tuesday Blitz"]
[Site "Chess.com"]
[Date "2021.04.20"]
[Round "3"]
[White "VladaSviridova"]
[Black "Omk124"]
[Result "0-1"]
[WhiteElo "2262"]
[BlackElo "2553"]
[TimeControl "180+1"]
[EndTime "10:27:54 PDT"]
[Termination "Omk124 won by resignation"]

1. d4 {[%clk 0:03:00.9]} 1... Nf6 {[%clk 0:02:59.8]} 2. c4 {[%clk 0:03:00.8]}
2... g6 {[%clk 0:02:59.4]} 3. Nc3 {[%clk 0:03:00.5]} 3... d5 {[%clk 0:02:58.9]}
4. cxd5 {[%clk 0:03:00.5]} 4... Nxd5 {[%clk 0:02:59.8]} 5. e4 {[%clk 0:03:01]}
5... Nxc3 {[%clk 0:02:59.4]} 6. bxc3 {[%clk 0:03:01.6]} 6... Bg7 {[%clk
0:03:00.3]} 7. Bc4 {[%clk 0:03:01.9]} 7... O-O {[%clk 0:02:59.8]} 8. Ne2 {[%clk
0:03:02.5]} 8... c5 {[%clk 0:03:00.2]} 9. O-O {[%clk 0:03:03.2]} 9... Nc6 {[%clk
0:03:00.5]} 10. Be3 {[%clk 0:03:03.7]} 10... Bg4 {[%clk 0:03:00.8]} 11. f3
{[%clk 0:03:03.6]} 11... Na5 {[%clk 0:03:01.3]} 12. Bd3 {[%clk 0:02:59.3]} 12...
cxd4 {[%clk 0:03:00.9]} 13. cxd4 {[%clk 0:02:58.8]} 13... Be6 {[%clk 0:03:01.2]}
14. d5 {[%clk 0:02:58.8]} 14... Bxa1 {[%clk 0:03:01.1]} 15. Qxa1 {[%clk
0:02:58.1]} 15... f6 {[%clk 0:03:01.5]} 16. Bh6 {[%clk 0:02:57.5]} 16... Re8
{[%clk 0:03:00.1]} 17. Kh1 {[%clk 0:02:57.2]} 17... Rc8 {[%clk 0:02:59.5]} 18.
Nf4 {[%clk 0:02:51.2]} 18... Bd7 {[%clk 0:02:59.4]} 19. e5 {[%clk 0:02:50.8]}
19... Ba4 {[%clk 0:02:53]} 20. e6 {[%clk 0:02:29.7]} 20... Nc4 {[%clk 0:02:51]}
21. Nxg6 {[%clk 0:01:44]} 21... hxg6 {[%clk 0:02:49.8]} 22. Bxg6 {[%clk
0:01:43.9]} 22... Ne5 {[%clk 0:02:50]} 23. Be4 {[%clk 0:01:41.7]} 23... Bc2
{[%clk 0:02:49.4]} 24. Bxc2 {[%clk 0:01:41]} 24... Rxc2 {[%clk 0:02:50.3]} 25.
Qd1 {[%clk 0:01:35]} 25... Kh7 {[%clk 0:02:44.5]} 26. f4 {[%clk 0:01:04.5]}
26... Rxg2 {[%clk 0:01:49.7]} 27. Kxg2 {[%clk 0:01:00.9]} 27... Rg8+ {[%clk
0:01:49.9]} 28. Bg5 {[%clk 0:00:35.6]} 28... Qe8 {[%clk 0:01:16.6]} 29. Kh1
{[%clk 0:00:27.8]} 29... Nc4 {[%clk 0:01:02.4]} 30. Qd3+ {[%clk 0:00:24.3]}
30... Qg6 {[%clk 0:01:00.3]} 31. Qh3+ {[%clk 0:00:14.2]} 31... Kg7 {[%clk
0:00:57.9]} 32. f5 {[%clk 0:00:13.8]} 32... Qh7 {[%clk 0:00:32.9]} 33. Qxh7+
{[%clk 0:00:11.7]} 33... Kxh7 {[%clk 0:00:33.8]} 34. Bc1 {[%clk 0:00:10.3]}
34... Rd8 {[%clk 0:00:32.2]} 35. Rf4 {[%clk 0:00:09.5]} 35... Ne5 {[%clk
0:00:30.2]} 36. Rd4 {[%clk 0:00:08.9]} 36... Nc6 {[%clk 0:00:23.6]} 37. Rd1
{[%clk 0:00:08.3]} 37... Nb4 {[%clk 0:00:23.1]} 38. d6 {[%clk 0:00:08.2]} 38...
exd6 {[%clk 0:00:22.2]} 39. Ba3 {[%clk 0:00:05]} 39... Nc6 {[%clk 0:00:21.5]}
40. Bxd6 {[%clk 0:00:04.2]} 40... Ne7 {[%clk 0:00:18.4]} 41. Bxe7 {[%clk
0:00:01.1]} 41... Rxd1+ {[%clk 0:00:18.3]} 42. Kg2 {[%clk 0:00:01.8]} 42... Rd5
{[%clk 0:00:18.8]} 43. Kf3 {[%clk 0:00:01.9]} 43... Rxf5+ {[%clk 0:00:19.3]} 44.
Kg4 {[%clk 0:00:02.5]} 44... Re5 {[%clk 0:00:20.2]} 45. Bxf6 {[%clk 0:00:02.9]}
45... Rxe6 {[%clk 0:00:21.1]} 46. Bg5 {[%clk 0:00:03.3]} 46... Ra6 {[%clk
0:00:22]} 47. h4 {[%clk 0:00:03.3]} 47... Rxa2 {[%clk 0:00:22.9]} 48. Bf4 {[%clk
0:00:03.6]} 48... Ra4 {[%clk 0:00:22.9]} 0-1

[Event "*** Titled Tuesday Blitz"]
[Site "Chess.com"]
[Date "2021.04.20"]
[Round "3"]
[White "Durarbayli"]
[Black "GelmanAlexander"]
[Result "1-0"]
[WhiteElo "2749"]
[BlackElo "2584"]
[TimeControl "180+1"]
[EndTime "10:27:55 PDT"]
[Termination "Durarbayli won by resignation"]

1. e4 {[%clk 0:03:00.9]} 1... c5 {[%clk 0:02:59.6]} 2. Nf3 {[%clk 0:02:58.7]}
2... e6 {[%clk 0:03:00.2]} 3. d4 {[%clk 0:02:57.6]} 3... cxd4 {[%clk 0:03:00.7]}
4. Nxd4 {[%clk 0:02:58.5]} 4... a6 {[%clk 0:03:01.1]} 5. Nc3 {[%clk 0:02:58.7]}
5... d6 {[%clk 0:03:01.2]} 6. g4 {[%clk 0:02:53.4]} 6... b5 {[%clk 0:02:59.4]}
7. Bg2 {[%clk 0:02:52.8]} 7... Bb7 {[%clk 0:02:59.7]} 8. O-O {[%clk 0:02:51.1]}
8... h6 {[%clk 0:02:50.3]} 9. Re1 {[%clk 0:02:41.8]} 9... Nd7 {[%clk 0:02:49.6]}
10. f4 {[%clk 0:02:32.7]} 10... Be7 {[%clk 0:02:42.7]} 11. a3 {[%clk 0:02:04.9]}
11... Rc8 {[%clk 0:02:41.5]} 12. Be3 {[%clk 0:01:51.3]} 12... Nb6 {[%clk
0:02:22.2]} 13. Bf2 {[%clk 0:01:44.1]} 13... Qc7 {[%clk 0:02:12.9]} 14. Nce2
{[%clk 0:01:31.5]} 14... Nf6 {[%clk 0:02:12.9]} 15. Ng3 {[%clk 0:01:30.5]} 15...
g5 {[%clk 0:02:01.5]} 16. fxg5 {[%clk 0:01:09.9]} 16... hxg5 {[%clk 0:02:00.8]}
17. c3 {[%clk 0:01:08.7]} 17... Nc4 {[%clk 0:01:58.1]} 18. Qe2 {[%clk
0:01:07.2]} 18... Ne5 {[%clk 0:01:56.6]} 19. h3 {[%clk 0:01:07.5]} 19... Nfd7
{[%clk 0:01:47.7]} 20. Rad1 {[%clk 0:01:05.8]} 20... Nf8 {[%clk 0:01:46.8]} 21.
Rf1 {[%clk 0:01:04.4]} 21... Nfg6 {[%clk 0:01:46.7]} 22. Be3 {[%clk 0:01:04.9]}
22... Nf4 {[%clk 0:01:39.1]} 23. Bxf4 {[%clk 0:01:01.2]} 23... gxf4 {[%clk
0:01:40]} 24. Rxf4 {[%clk 0:01:01.6]} 24... Ng6 {[%clk 0:01:20.8]} 25. Rff1
{[%clk 0:00:53.6]} 25... Nh4 {[%clk 0:01:10.8]} 26. Bh1 {[%clk 0:00:50.9]} 26...
Qc5 {[%clk 0:01:08.1]} 27. Qf2 {[%clk 0:00:49.4]} 27... Rh7 {[%clk 0:01:07.5]}
28. Nh5 {[%clk 0:00:45.2]} 28... Kd7 {[%clk 0:00:57.8]} 29. Nf3 {[%clk
0:00:18.6]} 29... Rxh5 {[%clk 0:00:52.9]} 30. gxh5 {[%clk 0:00:14.9]} 30... Rg8+
{[%clk 0:00:52.4]} 31. Kh2 {[%clk 0:00:15.1]} 31... Nxf3+ {[%clk 0:00:33.1]} 32.
Bxf3 {[%clk 0:00:16]} 32... Qe5+ {[%clk 0:00:31.8]} 33. Kh1 {[%clk 0:00:16.4]}
33... Bxe4 {[%clk 0:00:28.5]} 34. Bxe4 {[%clk 0:00:16.1]} 34... Qxe4+ {[%clk
0:00:27.6]} 35. Qf3 {[%clk 0:00:16.6]} 35... Qh4 {[%clk 0:00:25.3]} 36. Qb7+
{[%clk 0:00:14.9]} 36... Ke8 {[%clk 0:00:25.6]} 37. Qc6+ {[%clk 0:00:13.2]}
37... Kd8 {[%clk 0:00:16.3]} 38. Qa8+ {[%clk 0:00:12]} 38... Kd7 {[%clk
0:00:15.1]} 39. Qxg8 {[%clk 0:00:10.8]} 39... Qxh3+ {[%clk 0:00:15.4]} 40. Kg1
{[%clk 0:00:09.8]} 40... d5 {[%clk 0:00:13.7]} 41. Qg2 {[%clk 0:00:09]} 41...
Bc5+ {[%clk 0:00:13.4]} 42. Rd4 {[%clk 0:00:09]} 42... Qh4 {[%clk 0:00:13.5]}
43. Rxf7+ {[%clk 0:00:06.3]} 43... Kd6 {[%clk 0:00:13.2]} 44. Qh2+ {[%clk
0:00:05.7]} 1-0

[Event "*** Titled Tuesday Blitz"]
[Site "Chess.com"]
[Date "2021.04.20"]
[Round "3"]
[White "Andrakhanova"]
[Black "Vesper2018"]
[Result "0-1"]
[WhiteElo "2314"]
[BlackElo "2535"]
[TimeControl "180+1"]
[EndTime "10:27:55 PDT"]
[Termination "Vesper2018 won by checkmate"]

1. c4 {[%clk 0:03:00.9]} 1... e5 {[%clk 0:02:58.1]} 2. Nc3 {[%clk 0:03:00.7]}
2... d6 {[%clk 0:02:55.8]} 3. g3 {[%clk 0:03:00.6]} 3... Nc6 {[%clk 0:02:51.4]}
4. Bg2 {[%clk 0:03:00.1]} 4... g6 {[%clk 0:02:47.8]} 5. e3 {[%clk 0:02:59.7]}
5... Bg7 {[%clk 0:02:44.5]} 6. b3 {[%clk 0:02:59.7]} 6... f5 {[%clk 0:02:40.5]}
7. Nge2 {[%clk 0:02:59.1]} 7... Nf6 {[%clk 0:02:40.8]} 8. Bb2 {[%clk 0:02:58.1]}
8... O-O {[%clk 0:02:38.8]} 9. O-O {[%clk 0:02:58.2]} 9... e4 {[%clk 0:02:32.3]}
10. d3 {[%clk 0:02:53]} 10... exd3 {[%clk 0:02:27]} 11. Qxd3 {[%clk 0:02:53.9]}
11... Be6 {[%clk 0:02:20.2]} 12. Rad1 {[%clk 0:02:42.4]} 12... Ne4 {[%clk
0:02:03]} 13. Ba1 {[%clk 0:02:10.9]} 13... Nc5 {[%clk 0:01:58.5]} 14. Qb1 {[%clk
0:01:58.9]} 14... a5 {[%clk 0:01:53.3]} 15. Nd4 {[%clk 0:01:43]} 15... Bd7
{[%clk 0:01:45.5]} 16. Nd5 {[%clk 0:01:31.2]} 16... Ne5 {[%clk 0:01:37.2]} 17.
h3 {[%clk 0:01:23.7]} 17... c6 {[%clk 0:01:26.7]} 18. Nf4 {[%clk 0:01:20.7]}
18... Qe7 {[%clk 0:01:24.4]} 19. Rd2 {[%clk 0:01:11.8]} 19... Rad8 {[%clk
0:01:20.2]} 20. Rfd1 {[%clk 0:01:07]} 20... g5 {[%clk 0:01:14.6]} 21. Nfe2
{[%clk 0:00:34]} 21... Ne4 {[%clk 0:01:13.4]} 22. Rc2 {[%clk 0:00:24.9]} 22...
Rde8 {[%clk 0:00:50.7]} 23. Nf3 {[%clk 0:00:20.2]} 23... Nxf3+ {[%clk
0:00:26.6]} 24. Bxf3 {[%clk 0:00:21.1]} 24... Bxa1 {[%clk 0:00:25.6]} 25. Qxa1
{[%clk 0:00:22]} 25... Nxf2 {[%clk 0:00:21.9]} 26. Kxf2 {[%clk 0:00:20.8]} 26...
Qxe3+ {[%clk 0:00:22.6]} 27. Kg2 {[%clk 0:00:18.4]} 27... g4 {[%clk 0:00:22.8]}
28. Ng1 {[%clk 0:00:14]} 28... gxf3+ {[%clk 0:00:18.4]} 29. Nxf3 {[%clk
0:00:14.9]} 29... f4 {[%clk 0:00:18.9]} 30. g4 {[%clk 0:00:15.3]} 30... Qe4
{[%clk 0:00:15]} 31. Qb2 {[%clk 0:00:12.9]} 31... c5 {[%clk 0:00:13.2]} 32. Re1
{[%clk 0:00:13]} 32... Qg6 {[%clk 0:00:07.9]} 33. Nh2 {[%clk 0:00:11.3]} 33...
Bc6+ {[%clk 0:00:07.7]} 34. Kf2 {[%clk 0:00:11]} 34... f3 {[%clk 0:00:07.2]} 35.
Rc3 {[%clk 0:00:09.5]} 35... Re2+ {[%clk 0:00:06.5]} 36. Rxe2 {[%clk 0:00:07.7]}
36... fxe2+ {[%clk 0:00:07]} 37. Ke1 {[%clk 0:00:08.2]} 37... Qe4 {[%clk
0:00:04.7]} 38. Qxe2 {[%clk 0:00:07.9]} 38... Qh1+ {[%clk 0:00:02.3]} 39. Kd2
{[%clk 0:00:07.9]} 39... Re8 {[%clk 0:00:02.1]} 40. Re3 {[%clk 0:00:07.2]} 40...
Rxe3 {[%clk 0:00:01.7]} 41. Kxe3 {[%clk 0:00:08.1]} 41... Qg1+ {[%clk
0:00:02.3]} 42. Kd2 {[%clk 0:00:08.1]} 42... Qa1 {[%clk 0:00:02.1]} 43. Ke3
{[%clk 0:00:07.7]} 43... Qd4# {[%clk 0:00:01.9]} 0-1

[Event "*** Titled Tuesday Blitz"]
[Site "Chess.com"]
[Date "2021.04.20"]
[Round "3"]
[White "Rodalquilar"]
[Black "BanjoKazooieN64"]
[Result "1-0"]
[WhiteElo "2712"]
[BlackElo "2438"]
[TimeControl "180+1"]
[EndTime "10:27:56 PDT"]
[Termination "Rodalquilar won on time"]

1. d4 {[%clk 0:03:00.9]} 1... e6 {[%clk 0:03:00.3]} 2. Bf4 {[%clk 0:02:57.9]}
2... f5 {[%clk 0:02:59.9]} 3. e3 {[%clk 0:02:57.9]} 3... Nf6 {[%clk 0:03:00.1]}
4. c4 {[%clk 0:02:58.3]} 4... Bb4+ {[%clk 0:02:59.3]} 5. Nc3 {[%clk 0:02:58.3]}
5... O-O {[%clk 0:02:59.1]} 6. Bd3 {[%clk 0:02:58.5]} 6... b6 {[%clk 0:02:59.2]}
7. Ne2 {[%clk 0:02:54.2]} 7... Bb7 {[%clk 0:02:59.3]} 8. f3 {[%clk 0:02:54.7]}
8... Nh5 {[%clk 0:02:56.6]} 9. Bg3 {[%clk 0:02:51.6]} 9... c5 {[%clk 0:02:52.8]}
10. Bd6 {[%clk 0:02:41.8]} 10... Re8 {[%clk 0:02:47.2]} 11. a3 {[%clk
0:02:31.1]} 11... Bxc3+ {[%clk 0:02:47.3]} 12. Nxc3 {[%clk 0:02:32]} 12... f4
{[%clk 0:02:42.1]} 13. Qc2 {[%clk 0:01:58.4]} 13... Qh4+ {[%clk 0:02:37]} 14. g3
{[%clk 0:01:44.3]} 14... fxg3 {[%clk 0:02:34.2]} 15. O-O-O {[%clk 0:01:44.6]}
15... g2 {[%clk 0:02:17.6]} 16. Qxg2 {[%clk 0:01:40]} 16... cxd4 {[%clk
0:02:17.6]} 17. exd4 {[%clk 0:01:07.6]} 17... Nf4 {[%clk 0:02:13.3]} 18. Bxf4
{[%clk 0:01:07.7]} 18... Qxf4+ {[%clk 0:02:13.5]} 19. Kb1 {[%clk 0:01:03.7]}
19... Qxf3 {[%clk 0:02:07]} 20. Qc2 {[%clk 0:01:01]} 20... Qh5 {[%clk
0:01:49.1]} 21. Rhg1 {[%clk 0:00:58.7]} 21... Nc6 {[%clk 0:01:46.1]} 22. Ne4
{[%clk 0:00:43.9]} 22... Rf8 {[%clk 0:01:39.1]} 23. d5 {[%clk 0:00:33.7]} 23...
Nd4 {[%clk 0:01:09.2]} 24. Qc3 {[%clk 0:00:33.7]} 24... e5 {[%clk 0:00:51.2]}
25. Rg5 {[%clk 0:00:33.6]} 25... Qxd1+ {[%clk 0:00:50.3]} 26. Ka2 {[%clk
0:00:33]} 26... Rf3 {[%clk 0:00:36.5]} 27. Nf2 {[%clk 0:00:10.4]} 27... Rxf2
{[%clk 0:00:29.9]} 28. Bxh7+ {[%clk 0:00:10.3]} 28... Kxh7 {[%clk 0:00:22.3]}
29. Qh3+ {[%clk 0:00:09.8]} 29... Kg8 {[%clk 0:00:22.2]} 30. Rxg7+ {[%clk
0:00:04.9]} 30... Kxg7 {[%clk 0:00:20.5]} 31. Qg3+ {[%clk 0:00:05.5]} 31... Kf7
{[%clk 0:00:12.5]} 32. Qxf2+ {[%clk 0:00:05.9]} 32... Qf3 {[%clk 0:00:04.3]} 33.
Qh4 {[%clk 0:00:06.1]} 33... Qb3+ {[%clk 0:00:04.3]} 34. Ka1 {[%clk 0:00:06.6]}
34... Qd1+ {[%clk 0:00:04.2]} 35. Ka2 {[%clk 0:00:06.9]} 35... Qb3+ {[%clk
0:00:04.1]} 36. Ka1 {[%clk 0:00:07.4]} 36... Rg8 {[%clk 0:00:04.3]} 37. Qh7+
{[%clk 0:00:05.2]} 37... Rg7 {[%clk 0:00:04.3]} 38. Qh5+ {[%clk 0:00:05.2]}
38... Ke7 {[%clk 0:00:02.9]} 39. Qh4+ {[%clk 0:00:05.7]} 39... Kd6 {[%clk
0:00:03.3]} 40. Qf6+ {[%clk 0:00:05.9]} 40... Ne6 {[%clk 0:00:03.1]} 41. Qf2
{[%clk 0:00:03.1]} 1-0